Cogmind - Beta 14 @@@ ROGUE MODE // 2025.03.26 @ 12:27:26 Player: SirusTheMadDJ Result: Destroyed by YI-UF0 with YI-UF0's Doublenader Performance ------------- Evolutions (0) 0 Regions Visited (2) 400 Robots Destroyed (8) 40 Value Destroyed (147) 147 Prototype IDs (0) 0 Alien Tech Used (0) 0 Bonus (0) 0 TOTAL SCORE: 587 Bonus ------- None Cogmind --------- Core Integrity 0/250 Matter 273/300 Energy 87/100 System Corruption 0% Temperature Cool (0) Movement Walking (90) Location -10/Mines Parts ------- > --- POWER (1) -------- (None) > --- PROPULSION (2) --- VSS Leg > --- UTILITY (2) ------ Medium Storage Unit > --- WEAPON (2) ------- (None) > --- INVENTORY (10) --- Ion Engine Light Treads Light Treads Aluminum Leg Target Analyzer Peak State ------------ > --- POWER ------------ Light Ion Engine > --- PROPULSION ------- Aluminum Leg VSS Leg > --- UTILITY ---------- Medium Storage Unit Propulsion Shielding > --- WEAPON ----------- EM Pulse Gun Flak Cannon > --- INVENTORY -------- Ion Engine Light Treads Light Treads Aluminum Leg Target Analyzer Small Laser Assault Rifle Grenade Launcher Mining Laser [Rating: 12] Favorites ----------- Power Light Ion Engine Engine Light Ion Engine Propulsion Aluminum Leg Leg Aluminum Leg Utility Propulsion Shielding Storage Medium Storage Unit Protection Propulsion Shielding Weapon EM Pulse Gun Energy Gun EM Pulse Gun Ballistic Gun Assault Rifle Ballistic Cannon Flak Cannon Launcher Grenade Launcher Special Weapon Mining Laser Build | -11 -10 -10 ------- Run | Yrd Mat Min Slots Evolved . | . . . Power . | . . . Propulsion . | . . . Utility . | . . . Weapon . | . . . Parts Attached 18 | 6 6 6 Power 2 | 1 1 . Engine 2 | 1 1 . Core . | . . . Reactor . | . . . Propulsion 4 | 2 1 1 Treads . | . . . Leg 4 | 2 1 1 Wheel . | . . . Hover . | . . . Flight . | . . . Utility 3 | 1 2 . Device . | . . . Storage 2 | 1 1 . Processor . | . . . Hackware . | . . . Protection 1 | . 1 . Artifact . | . . . Weapon 9 | 2 2 5 Energy Gun 3 | 1 1 1 Energy Cannon . | . . . Ballistic Gun 2 | 1 . 1 Ballistic Cannon 1 | . . 1 Launcher 1 | . . 1 Special Weapon 2 | . 1 1 Impact Weapon . | . . . Slashing Weapon . | . . . Piercing Weapon . | . . . Special Melee Weapon . | . . . Unidentified Prototypes . | . . . Parts Lost 9 | . . 9 Power 1 | . . 1 Propulsion 1 | . . 1 Utility 1 | . . 1 Weapon 6 | . . 6 Highest Loss Streak 9 | . . 9 To Critical Strikes . | . . . Average Slot Usage (%) 99 | . 99 99 Engine 14 | . 14 14 Leg 27 | . 28 27 Storage 14 | . 14 14 Protection 13 | . 13 14 Energy Gun 13 | . 14 12 Ballistic Gun 8 | . 14 1 Ballistic Cannon 3 | . . 8 Special Weapon 2 | . . 5 Peak Build Rating 12 | 6 7 12 Average Rating 7 | 4 6 9 On Entrance 4 | . 6 7 Naked Turns . | . . . Heaviest Build 23 | 12 18 23 Greatest Support 22 | 20 20 22 Greatest Overweight (x) 1 | 1 . 1 Average Overweight (x) . | . . . Largest Inventory Capacity 10 | 8 10 10 Average Capacity 8 | 6 8 10 Most Carried 9 | 4 6 9 Average Carried 5 | 1 4 7 Final Capacity 10 | 8 10 10 Final Carried 6 | 4 6 5 Class Distribution -------------------- 100% | Mutant Dominant Class ---------------- Mutant | -10/Materials Mutant | -10/Mines Resources | -11 -10 -10 ----------- Run | Yrd Mat Min Matter Collected 391 | 133 145 113 Remotely . | . . . Salvage Created 185 | . 145 40 Parts 20 | . 18 2 Haulers Intercepted . | . . . Recyclers Shooed . | . . . Parts Field Recycled . | . . . Retrieved Matter . | . . . Parts Self-Destructed . | . . . Prevented . | . . . Kills | -11 -10 -10 ------- Run | Yrd Mat Min Combat Hostiles Destroyed 7 | . 5 2 Guns 7 | . 5 2 Classes Destroyed 3 | . 3 . Watcher 1 | . 1 . Swarmer 5 | . 3 2 Grunt 2 | . 2 . Best Kill Streak 4 | . 4 2 Combat Bots Only 3 | . 3 2 Max Kills in Single Turn 1 | . 1 1 Gunslinging . | . . . Exploded . | . . . Melee . | . . . Uniques/NPCs Destroyed . | . . . Combat | -11 -10 -10 -------- Run | Yrd Mat Min Hostile Shots Fired 56 | . 18 38 Missed 13 | . 4 9 Damage Taken 1107 | . 203 904 Core 260 | . 39 221 Absorbed by Shields . | . . . Redirected to Shielding 51 | . 27 24 Core Remaining (%) 100 | 100 . . Volleys Fired 23 | . 13 10 Largest 2 | . 2 2 Hottest 84 | . 60 84 Shots Fired 38 | . 26 12 Gun 34 | . 26 8 Cannon 4 | . . 4 Launcher . | . . . Special . | . . . Kinetic 22 | . 13 9 Thermal 1 | . . 1 Explosive . | . . . Electromagnetic 15 | . 13 2 Robot Hit Streak 3 | . 3 3 Robot Miss Streak 4 | . 3 4 Penetration Max . | . . . Secondary Targets 2 | . 2 . Max Gunslinging Chain 1 | . 1 . Shots Hit Robots 22 | . 15 7 Core Hits 11 | . 9 2 Critical Kills . | . . . Critical Parts Destroyed . | . . . Critical Strikes 1 | . 1 . Corrupt 1 | . 1 . Melee Attacks . | . . . Impact . | . . . Slashing . | . . . Piercing . | . . . Sneak Attacks . | . . . Combat Hostiles . | . . . Follow-up Attacks . | . . . Damage Inflicted 342 | . 262 80 Guns 280 | . 227 53 Cannons 27 | . . 27 Explosions 35 | . 35 . Melee . | . . . Ramming . | . . . Kinetic 177 | . 128 49 Thermal 46 | . 35 11 Explosive . | . . . Electromagnetic 119 | . 99 20 Impact . | . . . Slashing . | . . . Piercing . | . . . Highest Corruption . | . . . Average Corruption . | . . . Corruption Purged . | . . . Corruption Blocked . | . . . Overload Shots . | . . . Overflow Damage . | . . . Projectiles . | . . . Explosions . | . . . Melee . | . . . Knockbacks . | . . . Impact . | . . . Kinetic . | . . . Secondary . | . . . Self-Inflicted Damage . | . . . Shots . | . . . Rammed . | . . . Targets Rammed . | . . . Kicked . | . . . Crushed . | . . . Highest Temperature 60 | . 60 48 Average Temperature 32 | . 38 18 Received Heat Transfer 60 | . 60 . Siege Activations . | . . . Robots Corrupted . | . . . Combat Hostiles . | . . . Parts Fried . | . . . Impact Corruptions . | . . . Robots Melted . | . . . Combat Hostiles . | . . . Parts Melted . | . . . Heat Transferred 25 | . . 25 Parts Sabotaged . | . . . Parts Stolen . | . . . Parts Stripped . | . . . Power Chain Reactions 1 | . 1 . Alert | -11 -10 -10 ------- Run | Yrd Mat Min Peak Influence 130 | . 130 50 Initial . | . . . Average 54 | . 89 12 Maximum Alert Level . | . . . Low Security (%) 100 | 100 100 100 Level 1 . | . . . Level 2 . | . . . Level 3 . | . . . Level 4 . | . . . Level 5 . | . . . High Security . | . . . Max Security . | . . . Squads Dispatched 1 | . . 1 Investigation 1 | . . 1 Extermination . | . . . Reinforcement . | . . . Assault . | . . . Garrison . | . . . Intercept . | . . . Searches Triggered . | . . . Construction Impeded . | . . . Haulers Reinforced . | . . . Active Scanning Responses . | . . . Cargo Convoy Interrupts . | . . . Stealth | -11 -10 -10 --------- Run | Yrd Mat Min Distress Signals 1 | . 1 . Communications Jammed . | . . . Distress Signals . | . . . Times Spotted 10 | . 7 3 Peak Tracking Total 3 | . 3 2 Tactical Retreats . | . . . Traps | -11 -10 -10 ------- Run | Yrd Mat Min Traps Triggered 2 | . 2 . Indirectly . | . . . Trap Hack Attempts . | . . . Triggered . | . . . Disarmed . | . . . Reprogrammed . | . . . Reused . | . . . Traps Extracted . | . . . Installed . | . . . Triggered . | . . . Machines | -11 -10 -10 ---------- Run | Yrd Mat Min Machines Disabled . | . . . Max in Single Turn . | . . . Machines Repaired . | . . . Machines Dismantled . | . . . Machines Sabotaged . | . . . Overloaded Fab Kills . | . . . Hacking | -11 -10 -10 --------- Run | Yrd Mat Min Machines Accessed 1 | . . 1 Terminals . | . . . Fabricators . | . . . Repair Stations . | . . . Recycling Units . | . . . Scanalyzers . | . . . Garrison Access . | . . . Total Hacks 1 | . . 1 Successful 1 | . . 1 Failed . | . . . Catastrophic . | . . . Database Lockouts . | . . . Manual . | . . . Terminals . | . . . Fabricators . | . . . Repair Stations . | . . . Recycling Units . | . . . Scanalyzers . | . . . Garrison Access . | . . . Terminal Hacks 1 | . . 1 Open Door 1 | . . 1 Fabricator Hacks . | . . . Repair Station Hacks . | . . . Recycling Unit Hacks . | . . . Scanalyzer . | . . . Garrison Access Hacks . | . . . Unauthorized Hacks . | . . . Terminals . | . . . Fabricators . | . . . Repair Stations . | . . . Recycling Units . | . . . Scanalyzers . | . . . Garrison Access . | . . . Data Cores Recovered . | . . . Used . | . . . Hacking Detections . | . . . Full Trace Events . | . . . Feedback Events . | . . . Feedback Blocked . | . . . Robot Schematics Acquired . | . . . Robots Built . | . . . Authchips . | . . . Time . | . . . Total Robot Build Rating . | . . . Part Schematics Acquired . | . . . Parts Built . | . . . Authchips . | . . . Time . | . . . Total Part Build Rating . | . . . Parts Repaired . | . . . Time . | . . . Parts Recycled . | . . . Recycled Matter . | . . . Retrieved Matter . | . . . Retrieved Components . | . . . Parts Scanalyzed . | . . . Part Schematics Acquired . | . . . Parts Damaged . | . . . Bothacking | -11 -10 -10 ------------ Run | Yrd Mat Min Used RIF Installer . | . . . Robots Hacked . | . . . Non-combat . | . . . Combat . | . . . Robot Hacks Applied . | . . . Relay Couplers Released . | . . . Fabnet Peak Effective % . | . . . Robots Rewired . | . . . Allies Hacked . | . . . Hacks Repelled . | . . . Allies | -11 -10 -10 -------- Run | Yrd Mat Min Total Allies . | . . . Largest Group . | . . . Highest-Rated Group . | . . . Highest-Rated Ally . | . . . Total Orders . | . . . Ally Attacks . | . . . Total Damage . | . . . Kills . | . . . Allies Corrupted . | . . . Allies Melted . | . . . Intel | -11 -10 -10 ------- Run | Yrd Mat Min Robot Analysis Total . | . . . Derelict Logs Recovered 1 | . . 1 Drone Launches . | . . . Drone Recoveries . | . . . Exploration | -11 -10 -10 ------------- Run | Yrd Mat Min Turns Passed 737 | 62 415 260 Spaces Moved 515 | 44 267 204 Core 6 | 6 . . Treads . | . . . Legs 509 | 38 267 204 Wheels . | . . . Hover . | . . . Flight . | . . . Fastest Speed 50 | 50 120 90 Average Speed 115 | 112 120 110 Slowest Speed 185 | 120 120 185 Overloaded Moves . | . . . Propulsion Burnouts . | . . . Robots Hopped . | . . . Cave-ins Triggered . | . . . Exploration Rate (%) 27 | 3 40 40 Regions Visited 2 Branch Regions 1 Pre-discovered Areas . | . . . Known Exits Taken . | . . . Unknown Exits Taken 2 | 1 1 . Scrap Searched 2 | . . 2 Spaces Dug . | . . . Terrain Destroyed 3 | . 3 . Melee . | . . . Projectile . | . . . AOE 3 | . 3 . Terrain Rammed . | . . . Walls Destroyed . | . . . Machines Disabled . | . . . Actions | -11 -10 -10 --------- Run | Yrd Mat Min Total 612 | 53 334 225 Wait 46 | . 43 3 Move 513 | 43 266 204 Hop . | . . . Pick Up 8 | 4 2 2 Fast Attach 7 | 6 1 . Attach 4 | . . 4 Detach . | . . . Swap 7 | . 5 2 Drop 4 | . 4 . Fire 23 | . 13 10 Melee . | . . . Ram . | . . . Kick . | . . . Crush . | . . . Escape Stasis . | . . . Rewire . | . . . Trap . | . . . Miscellaneous . | . . . Route ------- -11/Scrapyard -10/Materials -10/Mines History --------- Turn | Location | Event 12 | -11/Scrapyard | Discovered new exit (range 16) 63 | -11/Scrapyard | Entered Materials 300 | -10/Materials | Build established: Mutant 438 | -10/Materials | Discovered new exit (range 16) 478 | -10/Materials | Entered Mines 479 | -10/Mines | YI-UF0 nonchalantly dropped a Grenade Launcher on the ground 557 | -10/Mines | Met a Derelict shopkeep closing up shop 596 | -10/Mines | Learned Materials stockpile data 725 | -10/Mines | Core integrity fell below 50% 733 | -10/Mines | Core integrity fell below 20% 738 | -10/Mines | Destroyed by YI-UF0 with YI-UF0's Doublenader Last Messages --------------- start expanding in this direction." YI-UF0 mumbles something. EM Pulse Gun destroyed. The unstable cave ceiling collapses. Flak Cannon destroyed. Grenade Launcher destroyed. The unstable cave ceiling collapses. Aluminum Leg destroyed. YI-UF0: "BOOM!" K-01 Serf destroyed. U-05 Engineer builds a Wall. The unstable cave ceiling collapses. Lgt. Ion Engine destroyed. Assault Rifle destroyed. Propulsion Shielding destroyed. The unstable cave ceiling collapses. Mining Laser destroyed. The unstable cave ceiling collapses. Sml. Laser destroyed. The unstable cave ceiling collapses. Map ----- +----------------------------------------------------+ | ?????????????????????????????????????????????????? | | ?????????????????????????????????????????????????? | | ?????????????????????????????????????????????????? | | ??????????##?????????????????????????????????????? | | ??????????# ##???????????????????????????????????? | | ??????????# ???????????????????????????????????? | | ???????????# ####???????????????????????????????? | | ???????????# ##??????????????????????????????? | | ???????????# #??????????????????????????????? | | ???????????# #????##?##???##????????????????? | | ???????????# ###### # ###? ?????????????????? | | ???????????## ### # #?????????????????? | | ????????????## r # #?????????????????? | | ?????????????## #?######??????????? | | ??????????????## ### ####???????? | | ???????????????### ## ##??????? | | ?????????????????# ### #####??? | | ?????????????????# ##??# ##?? | | ?????????????????# #??### #?? | | ?????????????????# ####???## #?? | | ?????????????????## # ##???# #?? | | ??????????????????## #???# ## ### | | ???????????????????# #???# #### | | ???????????????????## #???# #??## ## | | ???????????????????### ##??## ##??#####!! | | ????????????????#??# @ ###### ########= | | ???????????????## # #### ! | | ???????????????# g ######### | | ??????????????# =% [ % ##??????# | | ?????????????# # # ### ##???????# | | ????????????# # ### ##???????## | | ???????????? ?### #?## ##???###?### | | ???????????? ???? ######??### r##### ##??? | | ????????????? ????###??????????### ##?? | | ???????????????????????????????????## ### | | ????????????????????????????????????## | | ?????????????????????????????????????## | | ??????????????????????????????????????#### | | ?????????????????????????????????????????### | | ???????????????????????????????????????????## | | ????????????????????????????????????????????# # | | ???????????????????????????????????????????# ## | | ???????????????????????????????????????????# ##? | | ??????????????????????????????????????????# ##?? | | ????????????????????????????????????????? ##??? | | ???????????????????????????????????????? ????? | | ???????????????????????????????????????# ????? | | ???????????????????????????????????????## ????? | | ????????????????????????????????????????# ????? | | ????????????????????????????????????????## ????? | +----------------------------------------------------+ Best States ------------- Heat Dissipation 25 Energy Generation 10 Energy Capacity 125 Matter Stores 300 Matter Capacity 300 Sight Range 16 Terrain Scan Density 10 Propulsion Shielding 33 Evasion (%) 55 Item Schematics ----------------- None Robot Schematics ------------------ None Fabricated ------------ Nothing Alien Tech Used ----------------- None Achievements -------------- None Challenges ------------ None Game ------ Seed AngularWeaponsGravjet Manual? 0 Play Time 00:09:29 Cumulative 7.0 hours Start 2025.03.26 @ 12:19:09 End 2025.03.26 @ 12:27:26 Sessions 1 Manual Loads 0 Difficulty Rogue Special Mode None Game No. 17 Rogue 17 Adventurer 0 Explorer 0 Win Type - Total 0 Types 0/0/0/0/0/0/0/0/0 Lore% 3 Gallery% 12 Achievement% 12 Wizard Run 0 Options --------- Layout 1 ASCII 0 Keyboard 0 Movement Mouse Keybinds 0 Fullscreen 1 Font 24/Smallcaps Map View 50x35 Zoom Use 0% Tactical HUD 0 Map Filters NONE Filters NONE Steam 1 RUN: bd8c99fb-3c37-4e83-a565-ba663822750a